[Event "Titled Tuesday Blitz March 29 Early 2022"]
[White "Dushyant Sharma"]
[Black "Obolentseva, Alexandra"]
[WhiteFideId "25065130"]
[BlackFideId "24153648"]
[WhiteElo "2105"]
[BlackElo "2113"]
[Result "1-0"]
[Round "07"]
[TimeControl "180+1"]
[Date "2022.03.30"]
[WhiteClock "0:00:07"]
[BlackClock "0:00:09"]

1. e4 {[%clk 0:03:00]}  c5 {[%clk 0:02:59]} 2. Nf3 {[%clk 0:03:01]}  d6 {[%clk 0:02:54]} 3. d4 {[%clk 0:03:01]}  cxd4 {[%clk 0:02:55]} 4. Nxd4 {[%clk 0:03:02]}  Nf6 {[%clk 0:02:55]} 5. Nc3 {[%clk 0:03:03]}  a6 {[%clk 0:02:54]} 6. f4 {[%clk 0:03:03]}  b5 {[%clk 0:02:53]} 7. a3 {[%clk 0:03:00]}  Bb7 {[%clk 0:02:53]} 8. Bd3 {[%clk 0:03:00]}  e6 {[%clk 0:02:50]} 9. Nf3 {[%clk 0:03:00]}  Be7 {[%clk 0:02:49]} 10. O-O {[%clk 0:03:00]}  O-O {[%clk 0:02:46]} 11. Qe1 {[%clk 0:03:00]}  Nbd7 {[%clk 0:02:41]} 12. Bd2 {[%clk 0:02:59]}  Nc5 {[%clk 0:02:41]} 13. b4 {[%clk 0:02:59]}  Nxd3 {[%clk 0:02:31]} 14. cxd3 {[%clk 0:02:59]}  Rc8 {[%clk 0:02:30]} 15. Kh1 {[%clk 0:02:53]}  Qd7 {[%clk 0:02:17]} 16. Rc1 {[%clk 0:02:48]}  Rc7 {[%clk 0:02:08]} 17. Qg3 {[%clk 0:02:32]}  Rfc8 {[%clk 0:02:06]} 18. h3 {[%clk 0:02:29]}  Ne8 {[%clk 0:01:52]} 19. Kh2 {[%clk 0:01:34]}  Rc6 {[%clk 0:01:15]} 20. Nd4 {[%clk 0:01:32]}  R6c7 {[%clk 0:01:14]} 21. Nf3 {[%clk 0:01:27]}  Kh8 {[%clk 0:00:59]} 22. f5 {[%clk 0:01:25]}  Bf6 {[%clk 0:00:57]} 23. d4 {[%clk 0:00:50]}  exf5 {[%clk 0:00:46]} 24. e5 {[%clk 0:00:37]}  dxe5 {[%clk 0:00:43]} 25. dxe5 {[%clk 0:00:38]}  Bxf3 {[%clk 0:00:36]} 26. Be1 {[%clk 0:00:12]}  Bh5 {[%clk 0:00:27]} 27. exf6 {[%clk 0:00:11]}  Nxf6 {[%clk 0:00:28]} 28. Bf2 {[%clk 0:00:06]}  Bg6 {[%clk 0:00:27]} 29. Bc5 {[%clk 0:00:06]}  h6 {[%clk 0:00:26]} 30. Rcd1 {[%clk 0:00:06]}  Qc6 {[%clk 0:00:26]} 31. Rd6 {[%clk 0:00:06]}  Qe8 {[%clk 0:00:24]} 32. Re1 {[%clk 0:00:05]}  Ne4 {[%clk 0:00:23]} 33. Nxe4 {[%clk 0:00:06]}  fxe4 {[%clk 0:00:24]} 34. Bd4 {[%clk 0:00:06]}  Rc4 {[%clk 0:00:21]} 35. Qf4 {[%clk 0:00:06]}  R8c6 {[%clk 0:00:16]} 36. Qxh6+ {[%clk 0:00:06]}  Bh7 {[%clk 0:00:09]} 37. Qxg7# {[%clk 0:00:07]} 1-0


[Site "https://www.chess.com"]

[Event "Titled Tuesday Blitz March 29 Early 2022"]
[White "Fathy, Elameir"]
[Black "Ambartsumova, Karina"]
[WhiteFideId "10600396"]
[BlackFideId "4166299"]
[WhiteElo "2311"]
[BlackElo "2262"]
[Result "0-1"]
[Round "07"]
[TimeControl "180+1"]
[Date "2022.03.30"]
[WhiteClock "0:00:08"]
[BlackClock "0:00:59"]

1. d4 {[%clk 0:03:00]}  Nf6 {[%clk 0:02:56]} 2. c4 {[%clk 0:03:01]}  e6 {[%clk 0:02:56]} 3. Nf3 {[%clk 0:03:01]}  d5 {[%clk 0:02:57]} 4. g3 {[%clk 0:03:01]}  dxc4 {[%clk 0:02:57]} 5. Bg2 {[%clk 0:03:01]}  Nc6 {[%clk 0:02:57]} 6. Qa4 {[%clk 0:02:57]}  Bb4+ {[%clk 0:02:56]} 7. Bd2 {[%clk 0:02:57]}  Bd6 {[%clk 0:02:56]} 8. O-O {[%clk 0:02:50]}  O-O {[%clk 0:02:55]} 9. Qxc4 {[%clk 0:02:46]}  e5 {[%clk 0:02:55]} 10. Nc3 {[%clk 0:02:37]}  exd4 {[%clk 0:02:50]} 11. Nxd4 {[%clk 0:02:37]}  Nxd4 {[%clk 0:02:48]} 12. Qxd4 {[%clk 0:02:37]}  Bxg3 {[%clk 0:02:48]} 13. Qxd8 {[%clk 0:02:11]}  Rxd8 {[%clk 0:02:49]} 14. hxg3 {[%clk 0:02:05]}  Rxd2 {[%clk 0:02:49]} 15. Rfd1 {[%clk 0:02:06]}  Rd7 {[%clk 0:02:44]} 16. Rxd7 {[%clk 0:02:03]}  Bxd7 {[%clk 0:02:37]} 17. Rd1 {[%clk 0:01:52]}  Kf8 {[%clk 0:02:27]} 18. Nd5 {[%clk 0:01:25]}  Nxd5 {[%clk 0:02:13]} 19. Bxd5 {[%clk 0:01:26]}  Be8 {[%clk 0:01:52]} 20. Bxb7 {[%clk 0:00:52]}  Rb8 {[%clk 0:01:52]} 21. Bf3 {[%clk 0:00:20]}  Rxb2 {[%clk 0:01:52]} 22. Rd8 {[%clk 0:00:21]}  Rxa2 {[%clk 0:01:36]} 23. Bc6 {[%clk 0:00:17]}  Rxe2 {[%clk 0:01:35]} 24. Ra8 {[%clk 0:00:15]}  Re6 {[%clk 0:01:32]} 25. Bd7 {[%clk 0:00:13]}  Re7 {[%clk 0:01:30]} 26. Bc6 {[%clk 0:00:13]}  f6 {[%clk 0:01:22]} 27. Kg2 {[%clk 0:00:13]}  Kf7 {[%clk 0:01:17]} 28. Bd5+ {[%clk 0:00:13]}  Kg6 {[%clk 0:01:17]} 29. Rxa7 {[%clk 0:00:14]}  h5 {[%clk 0:01:07]} 30. Ra5 {[%clk 0:00:10]}  Re5 {[%clk 0:01:01]} 31. f4 {[%clk 0:00:08]}  Rxd5 {[%clk 0:00:59]} 0-1


[Site "https://www.chess.com"]

[Event "Titled Tuesday Blitz March 29 Early 2022"]
[White "Gaehwiler, Gabriel"]
[Black "Reprintsev, Alexander"]
[WhiteFideId "1314530"]
[BlackFideId "14100541"]
[WhiteElo "2692"]
[BlackElo "2544"]
[Result "0-1"]
[Round "07"]
[TimeControl "180+1"]
[Date "2022.03.30"]
[WhiteClock "0:00:11"]
[BlackClock "0:00:13"]

1. Nf3 {[%clk 0:03:00]}  d5 {[%clk 0:02:58]} 2. d4 {[%clk 0:03:00]}  Nc6 {[%clk 0:02:58]} 3. g3 {[%clk 0:03:00]}  Bf5 {[%clk 0:02:58]} 4. Bg2 {[%clk 0:03:00]}  Nb4 {[%clk 0:02:58]} 5. Na3 {[%clk 0:02:59]}  e6 {[%clk 0:02:58]} 6. c3 {[%clk 0:02:59]}  Nc6 {[%clk 0:02:58]} 7. Nc2 {[%clk 0:02:59]}  h6 {[%clk 0:02:57]} 8. O-O {[%clk 0:02:56]}  Nf6 {[%clk 0:02:57]} 9. Re1 {[%clk 0:02:55]}  Be7 {[%clk 0:02:57]} 10. Nd2 {[%clk 0:02:52]}  O-O {[%clk 0:02:53]} 11. e4 {[%clk 0:02:52]}  dxe4 {[%clk 0:02:42]} 12. Nxe4 {[%clk 0:02:52]}  Nxe4 {[%clk 0:02:42]} 13. Bxe4 {[%clk 0:02:53]}  Bxe4 {[%clk 0:02:42]} 14. Rxe4 {[%clk 0:02:53]}  e5 {[%clk 0:02:06]} 15. d5 {[%clk 0:02:37]}  Bf6 {[%clk 0:01:53]} 16. Bxh6 {[%clk 0:02:10]}  Ne7 {[%clk 0:01:49]} 17. Be3 {[%clk 0:01:20]}  Qxd5 {[%clk 0:01:41]} 18. Qf3 {[%clk 0:01:16]}  Rad8 {[%clk 0:01:36]} 19. Kg2 {[%clk 0:01:13]}  Ng6 {[%clk 0:01:32]} 20. h4 {[%clk 0:01:12]}  Rfe8 {[%clk 0:01:21]} 21. h5 {[%clk 0:01:03]}  Nf8 {[%clk 0:01:21]} 22. h6 {[%clk 0:00:56]}  gxh6 {[%clk 0:01:13]} 23. Nb4 {[%clk 0:00:54]}  Qe6 {[%clk 0:01:10]} 24. Bxh6 {[%clk 0:00:54]}  Ng6 {[%clk 0:01:06]} 25. Rh1 {[%clk 0:00:53]}  Be7 {[%clk 0:00:45]} 26. Qh5 {[%clk 0:00:26]}  Bxb4 {[%clk 0:00:33]} 27. Rxb4 {[%clk 0:00:26]}  e4 {[%clk 0:00:33]} 28. Bg5 {[%clk 0:00:23]}  Rd5 {[%clk 0:00:28]} 29. Qh7+ {[%clk 0:00:22]}  Kf8 {[%clk 0:00:29]} 30. Qh6+ {[%clk 0:00:13]}  Kg8 {[%clk 0:00:28]} 31. Rxb7 {[%clk 0:00:13]}  e3 {[%clk 0:00:21]} 32. Qh7+ {[%clk 0:00:13]}  Kf8 {[%clk 0:00:21]} 33. Qh6+ {[%clk 0:00:13]}  Kg8 {[%clk 0:00:21]} 34. Qh7+ {[%clk 0:00:14]}  Kf8 {[%clk 0:00:21]} 35. Bh6+ {[%clk 0:00:14]}  Ke7 {[%clk 0:00:21]} 36. Rxc7+ {[%clk 0:00:14]}  Kd6 {[%clk 0:00:18]} 37. Qxf7 {[%clk 0:00:14]}  e2 {[%clk 0:00:15]} 38. Be3 {[%clk 0:00:09]}  Ne5 {[%clk 0:00:11]} 39. Qxe6+ {[%clk 0:00:09]}  Rxe6 {[%clk 0:00:12]} 40. Rxa7 {[%clk 0:00:09]}  Nc6 {[%clk 0:00:10]} 41. Ra6 {[%clk 0:00:09]}  Rxe3 {[%clk 0:00:10]} 42. fxe3 {[%clk 0:00:10]}  Rd1 {[%clk 0:00:11]} 43. Rh6+ {[%clk 0:00:09]}  Kd7 {[%clk 0:00:10]} 44. Rh7+ {[%clk 0:00:07]}  Kd6 {[%clk 0:00:08]} 45. Rh6+ {[%clk 0:00:07]}  Kd5 {[%clk 0:00:09]} 46. Rh5+ {[%clk 0:00:07]}  Ke4 {[%clk 0:00:09]} 47. Rxc6 {[%clk 0:00:06]}  e1=Q {[%clk 0:00:08]} 48. Re6+ {[%clk 0:00:06]}  Kd3 {[%clk 0:00:09]} 49. Rd6+ {[%clk 0:00:06]}  Kc2 {[%clk 0:00:09]} 50. Rxd1 {[%clk 0:00:07]}  Qe2+ {[%clk 0:00:09]} 51. Kh3 {[%clk 0:00:07]}  Qxh5+ {[%clk 0:00:10]} 52. Kg2 {[%clk 0:00:07]}  Qxd1 {[%clk 0:00:10]} 53. Kf2 {[%clk 0:00:08]}  Qd2+ {[%clk 0:00:11]} 54. Kf3 {[%clk 0:00:09]}  Kd3 {[%clk 0:00:11]} 55. Kf4 {[%clk 0:00:10]}  Qxe3+ {[%clk 0:00:12]} 56. Kf5 {[%clk 0:00:11]}  Qxg3 {[%clk 0:00:13]} 0-1


[Site "https://www.chess.com"]

[Event "Titled Tuesday Blitz March 29 Early 2022"]
[White "Gatterer, Florian"]
[Black "Marcziter, Dmitrii"]
[WhiteFideId "811688"]
[BlackFideId "13900765"]
[WhiteElo "2218"]
[BlackElo "2155"]
[Result "0-1"]
[Round "07"]
[TimeControl "180+1"]
[Date "2022.03.30"]
[WhiteClock "0:00:05"]
[BlackClock "0:01:25"]

1. b3 {[%clk 0:03:00]}  e5 {[%clk 0:02:58]} 2. Bb2 {[%clk 0:02:59]}  Bd6 {[%clk 0:02:58]} 3. e3 {[%clk 0:02:59]}  Nf6 {[%clk 0:02:57]} 4. c4 {[%clk 0:02:57]}  c6 {[%clk 0:02:56]} 5. Nf3 {[%clk 0:02:57]}  Qe7 {[%clk 0:02:56]} 6. Be2 {[%clk 0:02:55]}  O-O {[%clk 0:02:55]} 7. d4 {[%clk 0:02:53]}  Bb4+ {[%clk 0:02:49]} 8. Nfd2 {[%clk 0:02:48]}  e4 {[%clk 0:02:37]} 9. O-O {[%clk 0:02:45]}  d5 {[%clk 0:02:37]} 10. a3 {[%clk 0:02:42]}  Bd6 {[%clk 0:02:35]} 11. Nc3 {[%clk 0:02:36]}  a6 {[%clk 0:02:35]} 12. b4 {[%clk 0:02:20]}  Bf5 {[%clk 0:02:31]} 13. c5 {[%clk 0:02:17]}  Bc7 {[%clk 0:02:31]} 14. a4 {[%clk 0:02:17]}  Nbd7 {[%clk 0:02:31]} 15. b5 {[%clk 0:02:17]}  a5 {[%clk 0:02:21]} 16. b6 {[%clk 0:02:16]}  Bb8 {[%clk 0:02:20]} 17. Kh1 {[%clk 0:02:00]}  h6 {[%clk 0:02:19]} 18. Rg1 {[%clk 0:02:00]}  Bh7 {[%clk 0:02:19]} 19. Nf1 {[%clk 0:01:56]}  Ne8 {[%clk 0:02:17]} 20. f4 {[%clk 0:01:39]}  exf3 {[%clk 0:02:11]} 21. gxf3 {[%clk 0:01:32]}  Qh4 {[%clk 0:02:02]} 22. Bd3 {[%clk 0:01:30]}  Bxd3 {[%clk 0:01:58]} 23. Qxd3 {[%clk 0:01:30]}  Nef6 {[%clk 0:01:57]} 24. Qd2 {[%clk 0:01:06]}  Re8 {[%clk 0:01:55]} 25. Qg2 {[%clk 0:01:06]}  g5 {[%clk 0:01:44]} 26. Ne2 {[%clk 0:00:52]}  Nh5 {[%clk 0:01:41]} 27. Neg3 {[%clk 0:00:50]}  Nxg3+ {[%clk 0:01:36]} 28. Nxg3 {[%clk 0:00:45]}  Bxg3 {[%clk 0:01:35]} 29. Qxg3 {[%clk 0:00:43]}  Qxg3 {[%clk 0:01:35]} 30. hxg3 {[%clk 0:00:20]}  Rxe3 {[%clk 0:01:34]} 31. Rgf1 {[%clk 0:00:17]}  Rae8 {[%clk 0:01:32]} 32. Rac1 {[%clk 0:00:14]}  Nf6 {[%clk 0:01:30]} 33. Bc3 {[%clk 0:00:14]}  Re2 {[%clk 0:01:30]} 34. Bxa5 {[%clk 0:00:13]}  Nh5 {[%clk 0:01:29]} 35. Rg1 {[%clk 0:00:13]}  Rf2 {[%clk 0:01:29]} 36. Bb4 {[%clk 0:00:10]}  Ree2 {[%clk 0:01:28]} 37. Rgd1 {[%clk 0:00:05]}  Nxg3+ {[%clk 0:01:25]} 0-1


[Site "https://www.chess.com"]

[Event "Titled Tuesday Blitz March 29 Early 2022"]
[White "Gracia Alvarez, Gerardo Antonio"]
[Black "Einarsson, Halldor Gretar"]
[WhiteFideId "5109124"]
[BlackFideId "2300150"]
[WhiteElo "2139"]
[BlackElo "2114"]
[Result "1-0"]
[Round "07"]
[TimeControl "180+1"]
[Date "2022.03.30"]
[WhiteClock "0:00:23"]
[BlackClock "0:00:04"]

1. e4 {[%clk 0:03:00]}  e5 {[%clk 0:02:58]} 2. Bc4 {[%clk 0:03:00]}  Nc6 {[%clk 0:02:54]} 3. Nc3 {[%clk 0:02:59]}  Nf6 {[%clk 0:02:52]} 4. d3 {[%clk 0:02:58]}  Bc5 {[%clk 0:02:51]} 5. f4 {[%clk 0:02:58]}  exf4 {[%clk 0:02:38]} 6. Bxf4 {[%clk 0:02:54]}  Na5 {[%clk 0:02:35]} 7. Bb3 {[%clk 0:02:51]}  Nxb3 {[%clk 0:02:34]} 8. axb3 {[%clk 0:02:52]}  Bb4 {[%clk 0:02:28]} 9. Nf3 {[%clk 0:02:23]}  d5 {[%clk 0:02:25]} 10. e5 {[%clk 0:02:23]}  d4 {[%clk 0:01:45]} 11. exf6 {[%clk 0:02:23]}  dxc3 {[%clk 0:01:25]} 12. O-O {[%clk 0:02:22]}  Qxf6 {[%clk 0:00:58]} 13. Ra4 {[%clk 0:02:06]}  Qxf4 {[%clk 0:00:51]} 14. bxc3 {[%clk 0:02:01]}  Qe3+ {[%clk 0:00:45]} 15. Kh1 {[%clk 0:01:59]}  Be7 {[%clk 0:00:44]} 16. Re1 {[%clk 0:01:51]}  Qc5 {[%clk 0:00:39]} 17. Rc4 {[%clk 0:01:33]}  Qb6 {[%clk 0:00:30]} 18. Nd4 {[%clk 0:01:23]}  Be6 {[%clk 0:00:19]} 19. Nxe6 {[%clk 0:01:22]}  fxe6 {[%clk 0:00:18]} 20. Rce4 {[%clk 0:00:59]}  O-O {[%clk 0:00:15]} 21. Rxe6 {[%clk 0:01:00]}  Qf2 {[%clk 0:00:14]} 22. Rxe7 {[%clk 0:00:53]}  Qf4 {[%clk 0:00:12]} 23. Qe2 {[%clk 0:00:46]}  a5 {[%clk 0:00:12]} 24. h3 {[%clk 0:00:39]}  a4 {[%clk 0:00:10]} 25. Qe6+ {[%clk 0:00:40]}  Kh8 {[%clk 0:00:09]} 26. Qd7 {[%clk 0:00:40]}  Qg3 {[%clk 0:00:08]} 27. bxa4 {[%clk 0:00:32]}  Rad8 {[%clk 0:00:06]} 28. Qxd8 {[%clk 0:00:26]}  Qxe1+ {[%clk 0:00:04]} 29. Rxe1 {[%clk 0:00:27]}  Rxd8 {[%clk 0:00:03]} 30. Re7 {[%clk 0:00:26]}  Rc8 {[%clk 0:00:04]} 31. g4 {[%clk 0:00:23]}  Kg8 {[%clk 0:00:04]} 32. Kg2 {[%clk 0:00:23]}  Kf8 {[%clk 0:00:04]} 33. Rd7 {[%clk 0:00:24]}  b6 {[%clk 0:00:04]} 34. Kf3 {[%clk 0:00:23]} 1-0


[Site "https://www.chess.com"]

[Event "Titled Tuesday Blitz March 29 Early 2022"]
[White "Grebeniuk, Semen"]
[Black "Papp, Petra"]
[WhiteFideId "14117509"]
[BlackFideId "739049"]
[WhiteElo "2234"]
[BlackElo "2259"]
[Result "1/2-1/2"]
[Round "07"]
[TimeControl "180+1"]
[Date "2022.03.30"]
[WhiteClock "0:00:18"]
[BlackClock "0:00:05"]

1. d4 {[%clk 0:02:40]}  Nf6 {[%clk 0:02:57]} 2. Nf3 {[%clk 0:02:40]}  g6 {[%clk 0:02:55]} 3. Bg5 {[%clk 0:02:41]}  Bg7 {[%clk 0:02:55]} 4. c3 {[%clk 0:02:41]}  O-O {[%clk 0:02:55]} 5. Nbd2 {[%clk 0:02:42]}  d5 {[%clk 0:02:53]} 6. e3 {[%clk 0:02:41]}  Nbd7 {[%clk 0:02:51]} 7. Bd3 {[%clk 0:02:40]}  c5 {[%clk 0:02:50]} 8. O-O {[%clk 0:02:34]}  b6 {[%clk 0:02:50]} 9. a4 {[%clk 0:02:23]}  a6 {[%clk 0:02:41]} 10. b4 {[%clk 0:02:17]}  Bb7 {[%clk 0:02:38]} 11. bxc5 {[%clk 0:02:09]}  bxc5 {[%clk 0:02:38]} 12. Rb1 {[%clk 0:02:10]}  Bc6 {[%clk 0:02:30]} 13. Qe2 {[%clk 0:01:47]}  Ne4 {[%clk 0:02:26]} 14. Rfc1 {[%clk 0:00:37]}  Nxg5 {[%clk 0:02:07]} 15. Nxg5 {[%clk 0:00:38]}  e5 {[%clk 0:02:00]} 16. Nh3 {[%clk 0:00:33]}  exd4 {[%clk 0:01:24]} 17. cxd4 {[%clk 0:00:33]}  c4 {[%clk 0:01:24]} 18. Bc2 {[%clk 0:00:32]}  Re8 {[%clk 0:01:20]} 19. Qg4 {[%clk 0:00:28]}  Qa5 {[%clk 0:01:11]} 20. Nf3 {[%clk 0:00:21]}  Rab8 {[%clk 0:01:09]} 21. Nf4 {[%clk 0:00:15]}  Rxb1 {[%clk 0:01:03]} 22. Rxb1 {[%clk 0:00:15]}  Nf6 {[%clk 0:01:02]} 23. Qh4 {[%clk 0:00:11]}  Bxa4 {[%clk 0:00:58]} 24. Bxa4 {[%clk 0:00:07]}  Qxa4 {[%clk 0:00:58]} 25. h3 {[%clk 0:00:06]}  c3 {[%clk 0:00:56]} 26. Ne5 {[%clk 0:00:04]}  c2 {[%clk 0:00:36]} 27. Rf1 {[%clk 0:00:04]}  Rb8 {[%clk 0:00:29]} 28. Nfd3 {[%clk 0:00:04]}  Rb1 {[%clk 0:00:28]} 29. Nc1 {[%clk 0:00:04]}  Qa3 {[%clk 0:00:25]} 30. Ned3 {[%clk 0:00:05]}  Qc3 {[%clk 0:00:19]} 31. Qf4 {[%clk 0:00:04]}  h6 {[%clk 0:00:19]} 32. Qf3 {[%clk 0:00:04]}  a5 {[%clk 0:00:18]} 33. Qe2 {[%clk 0:00:04]}  a4 {[%clk 0:00:18]} 34. Nc5 {[%clk 0:00:03]}  a3 {[%clk 0:00:18]} 35. e4 {[%clk 0:00:02]}  Nxe4 {[%clk 0:00:14]} 36. Nxe4 {[%clk 0:00:03]}  dxe4 {[%clk 0:00:15]} 37. Qxe4 {[%clk 0:00:03]}  a2 {[%clk 0:00:06]} 38. Qa8+ {[%clk 0:00:04]}  Kh7 {[%clk 0:00:06]} 39. Qxa2 {[%clk 0:00:05]}  Bxd4 {[%clk 0:00:06]} 40. Qxf7+ {[%clk 0:00:05]}  Bg7 {[%clk 0:00:06]} 41. Qf4 {[%clk 0:00:05]}  Qa3 {[%clk 0:00:05]} 42. h4 {[%clk 0:00:06]}  h5 {[%clk 0:00:05]} 43. Qe3 {[%clk 0:00:05]}  Qxe3 {[%clk 0:00:05]} 44. fxe3 {[%clk 0:00:06]}  Bb2 {[%clk 0:00:05]} 45. Nd3 {[%clk 0:00:07]}  Rxf1+ {[%clk 0:00:05]} 46. Kxf1 {[%clk 0:00:08]}  c1=Q+ {[%clk 0:00:05]} 47. Nxc1 {[%clk 0:00:08]}  Bxc1 {[%clk 0:00:06]} 48. Ke2 {[%clk 0:00:09]}  Bb2 {[%clk 0:00:06]} 49. Kf3 {[%clk 0:00:10]}  Kg7 {[%clk 0:00:05]} 50. g4 {[%clk 0:00:11]}  hxg4+ {[%clk 0:00:05]} 51. Kxg4 {[%clk 0:00:11]}  Kh6 {[%clk 0:00:04]} 52. e4 {[%clk 0:00:12]}  Be5 {[%clk 0:00:05]} 53. h5 {[%clk 0:00:11]}  gxh5+ {[%clk 0:00:05]} 54. Kh3 {[%clk 0:00:11]}  Kg5 {[%clk 0:00:05]} 55. Kg2 {[%clk 0:00:12]}  Kf4 {[%clk 0:00:05]} 56. Kh3 {[%clk 0:00:12]}  Bf6 {[%clk 0:00:05]} 57. Kg2 {[%clk 0:00:13]}  Kxe4 {[%clk 0:00:05]} 58. Kh3 {[%clk 0:00:13]}  Kf4 {[%clk 0:00:04]} 59. Kg2 {[%clk 0:00:14]}  Kg4 {[%clk 0:00:04]} 60. Kh1 {[%clk 0:00:15]}  h4 {[%clk 0:00:04]} 61. Kg1 {[%clk 0:00:16]}  Kg3 {[%clk 0:00:04]} 62. Kh1 {[%clk 0:00:17]}  h3 {[%clk 0:00:04]} 63. Kg1 {[%clk 0:00:17]}  h2+ {[%clk 0:00:05]} 64. Kh1 {[%clk 0:00:18]}  Kh3 {[%clk 0:00:05]} 1/2-1/2


[Site "https://www.chess.com"]

[Event "Titled Tuesday Blitz March 29 Early 2022"]
[White "Guseva, Marina"]
[Black "Kostiukov, Alexandr"]
[WhiteFideId "4149351"]
[BlackFideId "14108100"]
[WhiteElo "2160"]
[BlackElo "2202"]
[Result "0-1"]
[Round "07"]
[TimeControl "180+1"]
[Date "2022.03.30"]
[WhiteClock "0:00:01"]
[BlackClock "0:00:03"]

1. d4 {[%clk 0:03:00]}  g6 {[%clk 0:02:59]} 2. Nf3 {[%clk 0:02:59]}  Bg7 {[%clk 0:02:59]} 3. Bf4 {[%clk 0:02:58]}  d6 {[%clk 0:02:59]} 4. e3 {[%clk 0:02:58]}  Nc6 {[%clk 0:03:00]} 5. h3 {[%clk 0:02:41]}  e5 {[%clk 0:02:53]} 6. Bh2 {[%clk 0:02:40]}  Qe7 {[%clk 0:02:52]} 7. Be2 {[%clk 0:02:39]}  Nf6 {[%clk 0:02:49]} 8. O-O {[%clk 0:02:38]}  O-O {[%clk 0:02:49]} 9. c3 {[%clk 0:02:31]}  Ne4 {[%clk 0:02:45]} 10. Nbd2 {[%clk 0:02:29]}  Nxd2 {[%clk 0:02:45]} 11. Nxd2 {[%clk 0:02:28]}  f5 {[%clk 0:02:35]} 12. b4 {[%clk 0:02:26]}  f4 {[%clk 0:02:28]} 13. b5 {[%clk 0:02:08]}  Na5 {[%clk 0:02:27]} 14. exf4 {[%clk 0:01:59]}  exd4 {[%clk 0:02:21]} 15. cxd4 {[%clk 0:01:54]}  Bxd4 {[%clk 0:02:18]} 16. Rc1 {[%clk 0:01:53]}  Bg7 {[%clk 0:01:54]} 17. Bf3 {[%clk 0:01:31]}  Be6 {[%clk 0:01:41]} 18. Re1 {[%clk 0:01:30]}  Qd7 {[%clk 0:01:35]} 19. Rxe6 {[%clk 0:01:14]}  Qxe6 {[%clk 0:01:34]} 20. Nc4 {[%clk 0:01:14]}  Rf5 {[%clk 0:00:39]} 21. Nxa5 {[%clk 0:01:00]}  Rxb5 {[%clk 0:00:38]} 22. Nxb7 {[%clk 0:00:45]}  d5 {[%clk 0:00:21]} 23. f5 {[%clk 0:00:38]}  Qxf5 {[%clk 0:00:12]} 24. Nc5 {[%clk 0:00:32]}  c6 {[%clk 0:00:11]} 25. Bg4 {[%clk 0:00:29]}  Qf6 {[%clk 0:00:12]} 26. Ne6 {[%clk 0:00:19]}  h5 {[%clk 0:00:10]} 27. Nc7 {[%clk 0:00:07]}  hxg4 {[%clk 0:00:09]} 28. Nxb5 {[%clk 0:00:06]}  Re8 {[%clk 0:00:07]} 29. Nd6 {[%clk 0:00:05]}  Rf8 {[%clk 0:00:05]} 30. Qxg4 {[%clk 0:00:01]}  Qxf2+ {[%clk 0:00:04]} 31. Kh1 {[%clk 0:00:02]}  Bd4 {[%clk 0:00:03]} 32. Qe6+ {[%clk 0:00:01]}  Kh8 {[%clk 0:00:03]} 0-1


[Site "https://www.chess.com"]

[Event "Titled Tuesday Blitz March 29 Early 2022"]
[White "Dronavalli, Harika"]
[Black "Fromm, Marius"]
[WhiteFideId "5015197"]
[BlackFideId "12993190"]
[WhiteElo "2382"]
[BlackElo "2471"]
[Result "1-0"]
[Round "07"]
[TimeControl "180+1"]
[Date "2022.03.30"]
[WhiteClock "0:01:17"]
[BlackClock "0:00:17"]

1. d4 {[%clk 0:03:00]}  Nf6 {[%clk 0:02:59]} 2. c4 {[%clk 0:02:57]}  e6 {[%clk 0:03:00]} 3. Nc3 {[%clk 0:02:56]}  Bb4 {[%clk 0:03:00]} 4. Bd2 {[%clk 0:02:57]}  O-O {[%clk 0:02:55]} 5. e3 {[%clk 0:02:57]}  d5 {[%clk 0:02:48]} 6. Nf3 {[%clk 0:02:57]}  b6 {[%clk 0:02:44]} 7. Rc1 {[%clk 0:02:51]}  Bb7 {[%clk 0:02:43]} 8. cxd5 {[%clk 0:02:51]}  exd5 {[%clk 0:02:43]} 9. Bd3 {[%clk 0:02:51]}  a6 {[%clk 0:02:41]} 10. Ne5 {[%clk 0:02:50]}  Re8 {[%clk 0:02:32]} 11. O-O {[%clk 0:02:49]}  Nbd7 {[%clk 0:02:28]} 12. f4 {[%clk 0:02:48]}  Bd6 {[%clk 0:02:10]} 13. Be1 {[%clk 0:02:46]}  Ne4 {[%clk 0:01:58]} 14. Nxe4 {[%clk 0:02:44]}  dxe4 {[%clk 0:01:59]} 15. Bc4 {[%clk 0:02:44]}  Bxe5 {[%clk 0:01:43]} 16. fxe5 {[%clk 0:02:43]}  Rf8 {[%clk 0:01:39]} 17. Qh5 {[%clk 0:02:41]}  Qe8 {[%clk 0:01:26]} 18. Bh4 {[%clk 0:02:38]}  c5 {[%clk 0:01:21]} 19. Qg4 {[%clk 0:01:50]}  Kh8 {[%clk 0:01:11]} 20. Qf5 {[%clk 0:01:39]}  f6 {[%clk 0:00:44]} 21. e6 {[%clk 0:01:37]}  Nb8 {[%clk 0:00:44]} 22. d5 {[%clk 0:01:35]}  b5 {[%clk 0:00:44]} 23. Bb3 {[%clk 0:01:35]}  c4 {[%clk 0:00:42]} 24. Bc2 {[%clk 0:01:35]}  g6 {[%clk 0:00:39]} 25. Bxf6+ {[%clk 0:01:31]}  Kg8 {[%clk 0:00:38]} 26. Qg5 {[%clk 0:01:27]}  a5 {[%clk 0:00:27]} 27. Bxe4 {[%clk 0:01:27]}  Na6 {[%clk 0:00:28]} 28. Bd4 {[%clk 0:01:18]}  Nc7 {[%clk 0:00:24]} 29. Qe5 {[%clk 0:01:18]}  Nxe6 {[%clk 0:00:18]} 30. dxe6 {[%clk 0:01:18]}  Bxe4 {[%clk 0:00:17]} 31. Qg7# {[%clk 0:01:17]} 1-0


[Site "https://www.chess.com"]

[Event "Titled Tuesday Blitz March 29 Early 2022"]
[White "Hartikainen, Jarmo"]
[Black "Petrova, Irina"]
[WhiteFideId "503134"]
[BlackFideId "14124122"]
[WhiteElo "2060"]
[BlackElo "1993"]
[Result "0-1"]
[Round "07"]
[TimeControl "180+1"]
[Date "2022.03.30"]
[WhiteClock "0:00:30"]
[BlackClock "0:02:07"]

1. e4 {[%clk 0:03:00]}  d6 {[%clk 0:03:00]} 2. d4 {[%clk 0:03:00]}  Nf6 {[%clk 0:03:00]} 3. Nc3 {[%clk 0:03:00]}  e5 {[%clk 0:03:00]} 4. Nf3 {[%clk 0:02:58]}  Nbd7 {[%clk 0:02:59]} 5. h3 {[%clk 0:02:49]}  Be7 {[%clk 0:02:57]} 6. dxe5 {[%clk 0:02:46]}  dxe5 {[%clk 0:02:57]} 7. Be3 {[%clk 0:02:43]}  O-O {[%clk 0:02:57]} 8. Bc4 {[%clk 0:02:43]}  c6 {[%clk 0:02:57]} 9. O-O {[%clk 0:02:42]}  b5 {[%clk 0:02:57]} 10. Bd3 {[%clk 0:02:35]}  Bb7 {[%clk 0:02:51]} 11. a3 {[%clk 0:02:29]}  Qc7 {[%clk 0:02:51]} 12. Qe2 {[%clk 0:02:26]}  a6 {[%clk 0:02:49]} 13. b4 {[%clk 0:02:21]}  c5 {[%clk 0:02:40]} 14. bxc5 {[%clk 0:02:13]}  Nxc5 {[%clk 0:02:41]} 15. Bxc5 {[%clk 0:01:55]}  Bxc5 {[%clk 0:02:42]} 16. Nd5 {[%clk 0:01:45]}  Bxd5 {[%clk 0:02:10]} 17. exd5 {[%clk 0:01:45]}  e4 {[%clk 0:02:08]} 18. Bxe4 {[%clk 0:01:08]}  Rae8 {[%clk 0:02:08]} 19. Nd2 {[%clk 0:00:30]}  Nxe4 {[%clk 0:02:07]} 20. Nxe4 {[%clk 0:00:30]}  f5 {[%clk 0:02:07]} 0-1


[Site "https://www.chess.com"]